fUSD/lending_fUSD_20240919
["ID","MTS","AMOUNT","RATE_DAILY","PERIOD"]
[338554362,1726732243278,-500.0,0.00013163,2]
[338554363,1726732243288,-500.0,0.00013163,2]
[338554364,1726732243299,-500.0,0.00013163,2]
[338554365,1726732243309,-500.0,0.00013163,2]
[338554366,1726732243319,-500.0,0.00013163,2]
[338554367,1726732243329,-500.0,0.00013163,2]
[338554372,1726732243778,-504.44,0.00013163,2]
[338554373,1726732243789,-500.0,0.00013163,2]
[338554374,1726732243799,-500.0,0.00013163,2]
[338554375,1726732243809,-500.0,0.00013163,2]
[338554376,1726732243820,-561.64,0.00013163,2]
[338554377,1726732243834,-500.0,0.00013163,2]
[338554378,1726732243843,-969.61,0.00013163,2]
[338554379,1726732243853,-858.02,0.00013163,2]
[338554380,1726732243864,-500.0,0.00013163,2]
[338554381,1726732243874,-896.77,0.00013163,2]
[338554382,1726732243884,-500.0,0.00013163,2]
[338554383,1726732243894,-674.18,0.00013163,2]
[338554384,1726732243904,-500.0,0.00013163,2]
[338554385,1726732243914,-500.0,0.00013163,2]
[338554386,1726732243923,-643.3,0.00013163,2]
[338554387,1726732243934,-500.0,0.00013163,2]
[338554388,1726732243945,-993.4,0.00013163,2]
[338554389,1726732243955,-500.0,0.00013163,2]
[338554390,1726732243966,-500.0,0.00013163,2]
[338554391,1726732243976,-1258.28,0.00013163,2]
[338554392,1726732243986,-677.15,0.00013163,2]
[338554393,1726732243996,-1044.68,0.00013163,2]
[338554394,1726732244007,-705.18,0.00013163,2]
[338554395,1726732244017,-500.0,0.00013163,2]
[338554396,1726732244028,-500.0,0.00013163,2]
[338554397,1726732244038,-812.59,0.00013163,2]
[338554398,1726732244048,-500.0,0.00013163,2]
[338554399,1726732244058,-593.93,0.00013163,2]
[338554400,1726732244067,-500.0,0.00013163,2]
[338554401,1726732244078,-500.0,0.00013163,2]
[338554402,1726732244088,-582.2,0.00013163,2]
[338554403,1726732244098,-819.35,0.00013163,2]
[338554404,1726732244109,-500.0,0.00013163,2]
[338554405,1726732244120,-500.0,0.00013163,2]
[338554406,1726732244130,-500.0,0.00013163,2]
[338554407,1726732244140,-565.94,0.00013163,2]
[338554408,1726732244150,-500.0,0.00013163,2]
[338554409,1726732244160,-500.0,0.00013163,2]
[338554410,1726732244170,-1613.08,0.00013163,2]
[338554411,1726732244180,-536.25,0.00013163,2]
[338554412,1726732244194,-725.28,0.00013163,2]
[338554413,1726732244204,-500.0,0.00013163,2]
[338554414,1726732244214,-500.0,0.00013163,2]
[338554415,1726732244223,-500.0,0.00013163,2]
[338554416,1726732244233,-500.0,0.00013163,2]
[338554417,1726732244242,-500.0,0.00013163,2]
[338554418,1726732244252,-855.03,0.00013163,2]
[338554419,1726732244261,-500.0,0.00013163,2]
[338554420,1726732244271,-500.0,0.00013163,2]
[338554421,1726732244282,-500.0,0.00013163,2]
[338554422,1726732244291,-500.0,0.00013163,2]
[338554423,1726732244301,-1132.22,0.00013163,2]
[338554424,1726732244311,-500.0,0.00013163,2]
[338554425,1726732244321,-500.0,0.00013163,2]
[338554426,1726732244331,-500.0,0.00013163,2]
[338554427,1726732244341,-816.95,0.00013163,2]
[338554428,1726732244351,-500.0,0.00013163,2]
[338554429,1726732244361,-500.0,0.00013163,2]
[338554430,1726732244371,-500.0,0.00013163,2]
[338554431,1726732244380,-500.0,0.00013163,2]
[338554432,1726732244390,-500.0,0.00013163,2]
[338554433,1726732244400,-807.02,0.00013163,2]
[338554434,1726732244409,-196.39462684,0.00013163,2]
[338554435,1726732244419,-500.0,0.00013163,2]
[338554436,1726732244429,-500.0,0.00013163,2]
[338554437,1726732244439,-500.0,0.00013163,2]
[338554438,1726732244448,-728.77,0.00013163,2]
[338554439,1726732244458,-539.85,0.00013163,2]
[338554440,1726732244468,-500.0,0.00013163,2]
[338554441,1726732244478,-500.0,0.00013163,2]
[338554442,1726732244487,-500.0,0.00013163,2]
[338554443,1726732244497,-783.65,0.00013163,2]
[338554444,1726732244508,-572.27,0.00013163,2]
[338554445,1726732244518,-500.0,0.00013163,2]
[338554446,1726732244528,-500.0,0.00013163,2]
[338554447,1726732244538,-500.0,0.00013163,2]
[338554448,1726732244547,-962.12,0.00013163,2]
[338554449,1726732244557,-500.0,0.00013163,2]
[338554450,1726732244568,-500.0,0.00013163,2]
[338554451,1726732244578,-500.0,0.00013163,2]
[338554452,1726732244587,-545.57,0.00013163,2]
[338554453,1726732244597,-500.0,0.00013163,2]
[338554454,1726732244607,-500.0,0.00013163,2]
[338554455,1726732244616,-910.48,0.00013163,2]
[338554456,1726732244627,-979.92,0.00013163,2]
[338554457,1726732244636,-1433.4,0.00013163,2]
[338554458,1726732244647,-500.0,0.00013163,2]
[338554459,1726732244656,-500.0,0.00013163,2]
[338554460,1726732244666,-665.78,0.00013163,2]
[338554461,1726732244676,-638.34,0.00013163,2]
[338554462,1726732244686,-500.0,0.00013163,2]
[338554463,1726732244696,-500.0,0.00013163,2]
[338554464,1726732244706,-500.0,0.00013163,2]
[338554465,1726732244716,-500.0,0.00013163,2]
[338554466,1726732244726,-503.9,0.00013163,2]
[338554467,1726732244739,-500.0,0.00013163,2]
[338554468,1726732244749,-522.83,0.00013163,2]
[338554469,1726732244759,-500.0,0.00013163,2]
[338554470,1726732244770,-500.0,0.00013163,2]
[338554471,1726732244781,-500.0,0.00013163,2]
[338554472,1726732244791,-500.0,0.00013163,2]
[338554473,1726732244802,-427.24102782,0.00013163,2]
[338554474,1726732244812,-500.0,0.00013163,2]
[338554475,1726732244822,-500.0,0.00013163,2]
[338554476,1726732244834,-549.04,0.00013163,2]
[338554477,1726732244843,-500.0,0.00013163,2]
[338554478,1726732244853,-1979.64,0.00013163,2]
[338554479,1726732244863,-500.0,0.00013163,2]
[338554480,1726732244873,-500.0,0.00013163,2]
[338554481,1726732244883,-500.0,0.00013163,2]
[338554482,1726732244893,-653.65,0.00013163,2]
[338554483,1726732244903,-500.0,0.00013163,2]
[338554484,1726732244912,-500.0,0.00013163,2]
[338554485,1726732244922,-849.09,0.00013163,2]
[338554486,1726732244932,-500.0,0.00013163,2]
[338554487,1726732244942,-666.58,0.00013163,2]
[338554488,1726732244952,-500.0,0.00013163,2]
[338554489,1726732244962,-500.0,0.00013163,2]
[338554490,1726732244972,-500.0,0.00013163,2]
[338554491,1726732244981,-500.0,0.00013163,2]
[338554492,1726732244991,-544.2,0.00013163,2]
[338554493,1726732245001,-500.0,0.00013163,2]
[338554494,1726732245011,-500.0,0.00013163,2]
[338554495,1726732245020,-500.0,0.00013163,2]
[338554496,1726732245032,-500.0,0.00013163,2]
[338554497,1726732245041,-500.0,0.00013163,2]
[338554498,1726732245051,-500.0,0.00013163,2]
[338554499,1726732245061,-573.67325985,0.00013163,2]
[338554500,1726732245070,-500.0,0.00013163,2]
[338554501,1726732245080,-500.0,0.00013163,2]
[338554502,1726732245089,-500.0,0.00013163,2]
[338554503,1726732245099,-500.0,0.00013163,2]
[338554504,1726732245108,-500.0,0.00013163,2]
[338554505,1726732245118,-500.0,0.00013163,2]
[338554506,1726732245128,-500.0,0.00013163,2]
[338554507,1726732245138,-500.0,0.00013163,2]
[338554508,1726732245149,-500.0,0.00013163,2]
[338554509,1726732245159,-500.0,0.00013163,2]
[338554510,1726732245169,-500.0,0.00013163,2]
[338554511,1726732245179,-500.0,0.00013163,2]
[338554512,1726732245188,-500.0,0.00013163,2]
[338554513,1726732245198,-500.0,0.00013163,2]
[338554514,1726732245207,-500.0,0.00013163,2]
[338554515,1726732245217,-500.0,0.00013163,2]
[338554516,1726732245226,-500.0,0.00013163,2]
[338554517,1726732245236,-500.0,0.00013163,2]
[338554518,1726732245246,-615.25,0.00013163,2]
[338554519,1726732245256,-3400.98670077,0.0001318,2]
[338554520,1726732245266,-1200.0,0.00013182,2]
[338554521,1726732245276,-160.74645545,0.000133,2]
[338554522,1726732245286,-339.07182377,0.00013321,2]
[338554523,1726732245297,-3245.27913395,0.00013336,2]
[338554524,1726732245308,-673.44,0.00013336,2]
[338554525,1726732245320,-500.0,0.00013336,2]
[338554526,1726732245330,-500.0,0.00013336,2]
[338554527,1726732245340,-1243.1,0.00013336,2]
[338554528,1726732245352,-982.28,0.00013336,2]
[338554529,1726732245363,-500.0,0.00013336,2]
[338554530,1726732245373,-500.0,0.00013336,2]
[338554531,1726732245383,-862.5,0.00013336,2]
[338554532,1726732245393,-1402.12,0.00013336,2]
[338554533,1726732245403,-639.22,0.00013336,2]
[338554534,1726732245415,-557.76,0.00013336,2]
[338554535,1726732245425,-500.0,0.00013336,2]
[338554536,1726732245435,-717.81,0.00013336,2]
[338554537,1726732245445,-500.0,0.00013336,2]
[338554538,1726732245454,-500.0,0.00013336,2]
[338554539,1726732245464,-500.0,0.00013336,2]
[338554540,1726732245475,-500.0,0.00013336,2]
[338554541,1726732245484,-500.0,0.00013336,2]
[338554542,1726732245494,-500.0,0.00013336,2]
[338554543,1726732245504,-586.57,0.00013336,2]
[338554544,1726732245513,-756.99,0.00013336,2]
[338554545,1726732245523,-500.0,0.00013336,2]
[338554546,1726732245535,-500.0,0.00013336,2]
[338554547,1726732245545,-500.0,0.00013336,2]
[338554548,1726732245555,-500.0,0.00013336,2]
[338554549,1726732245565,-906.36,0.00013336,2]
[338554550,1726732245577,-1240.18,0.00013336,2]
[338554551,1726732245587,-672.73,0.00013336,2]
[338554552,1726732245596,-500.0,0.00013336,2]
[338554553,1726732245606,-500.0,0.00013336,2]
[338554554,1726732245616,-545.89,0.00013336,2]
[338554555,1726732245627,-500.0,0.00013336,2]
[338554556,1726732245636,-500.0,0.00013336,2]
[338554557,1726732245645,-500.0,0.00013336,2]
[338554558,1726732245655,-500.0,0.00013336,2]
[338554559,1726732245665,-728.38,0.00013336,2]
[338554560,1726732245674,-500.0,0.00013336,2]
[338554561,1726732245684,-500.0,0.00013336,2]
[338554562,1726732245694,-658.72,0.00013336,2]
[338554563,1726732245703,-519.0,0.00013336,2]
[338554564,1726732245713,-778.27,0.00013336,2]
[338554565,1726732245722,-500.0,0.00013336,2]
[338554566,1726732245732,-500.0,0.00013336,2]
[338554567,1726732245742,-500.0,0.00013336,2]
[338554568,1726732245752,-500.0,0.00013336,2]
[338554569,1726732245761,-500.0,0.00013336,2]
[338554570,1726732245771,-1008.59,0.00013336,2]
[338554571,1726732245783,-500.0,0.00013336,2]
[338554572,1726732245801,-718.9,0.00013336,2]
[338554573,1726732245813,-500.0,0.00013336,2]
[338554574,1726732245823,-4085.3,0.00013336,2]
[338554575,1726732245834,-500.0,0.00013336,2]
[338554577,1726732245843,-500.0,0.00013336,2]
[338554578,1726732245853,-584.37,0.00013336,2]
[338554579,1726732245862,-500.0,0.00013336,2]
[338554580,1726732245873,-500.0,0.00013336,2]
[338554581,1726732245883,-500.0,0.00013336,2]
[338554582,1726732245892,-500.0,0.00013336,2]
[338554583,1726732245902,-222.8,0.00013336,2]
[338554584,1726732245912,-500.0,0.00013336,2]
[338554585,1726732245921,-2428.34,0.00013336,2]
[338554586,1726732245930,-500.0,0.00013336,2]
[338554587,1726732245940,-500.0,0.00013336,2]
[338554588,1726732245949,-547.42,0.00013336,2]
[338554589,1726732245959,-500.0,0.00013336,2]
[338554590,1726732245969,-723.1,0.00013336,2]
[338554591,1726732245978,-517.64,0.00013336,2]
[338554592,1726732245988,-694.44,0.00013336,2]
[338554593,1726732245997,-6022.09,0.00013336,2]
[338554594,1726732246007,-784.32,0.00013336,2]
[338554595,1726732246016,-1042.29,0.00013336,2]
[338554596,1726732246026,-500.0,0.00013336,2]
[338554597,1726732246046,-500.0,0.00013336,2]
[338554598,1726732246056,-500.0,0.00013336,2]
[338554599,1726732246065,-870.34,0.00013336,2]
[338554600,1726732246075,-842.63,0.00013336,2]
[338554601,1726732246084,-502.74,0.00013336,2]
[338554602,1726732246094,-500.0,0.00013336,2]
[338554603,1726732246104,-599.18,0.00013336,2]
[338554604,1726732246113,-1280.12,0.00013336,2]
[338554605,1726732246123,-500.0,0.00013336,2]
[338554606,1726732246133,-500.0,0.00013336,2]
[338554607,1726732246143,-1131.1,0.00013336,2]
[338554608,1726732246153,-1402.14,0.00013336,2]
[338554609,1726732246162,-1347.02,0.00013336,2]
[338554610,1726732246171,-500.0,0.00013336,2]
[338554611,1726732246181,-628.39,0.00013336,2]
[338554612,1726732246191,-907.55,0.00013336,2]
[338554613,1726732246203,-500.0,0.00013336,2]
[338554614,1726732246212,-1233.42,0.00013336,2]
[338554615,1726732246222,-500.0,0.00013336,2]
[338554616,1726732246323,-500.0,0.00013336,2]
[338554617,1726732246333,-500.0,0.00013336,2]
[338554618,1726732246342,-619.95,0.00013336,2]
[338554619,1726732246352,-500.0,0.00013336,2]
[338554620,1726732246361,-500.0,0.00013336,2]
[338554621,1726732246371,-1504.17,0.00013336,2]
[338554622,1726732246381,-500.0,0.00013336,2]
[338554623,1726732246390,-500.0,0.00013336,2]
[338554624,1726732246400,-500.0,0.00013336,2]
[338554625,1726732246410,-1372.29,0.00013336,2]
[338554626,1726732246420,-3332.6,0.00013336,2]
[338554627,1726732246430,-1755.32,0.00013336,2]
[338554628,1726732246439,-500.0,0.00013336,2]
[338554629,1726732246449,-500.0,0.00013336,2]
[338554630,1726732246459,-2237.52,0.00013336,2]
[338554631,1726732246469,-500.0,0.00013336,2]
[338554632,1726732246477,-500.0,0.00013336,2]
[338554633,1726732246487,-500.0,0.00013336,2]
[338554634,1726732246496,-1400.09,0.00013336,2]
[338554635,1726732246506,-500.0,0.00013336,2]
[338554636,1726732246515,-500.0,0.00013336,2]
[338554637,1726732246524,-500.0,0.00013336,2]
[338554638,1726732246535,-2058.1,0.00013336,2]
[338554639,1726732246546,-1344.07,0.00013336,2]
[338554640,1726732246555,-568.11,0.00013336,2]
[338554641,1726732246565,-725.32,0.00013336,2]
[338554642,1726732246575,-1266.88,0.00013336,2]
[338554643,1726732246584,-500.0,0.00013336,2]
[338554644,1726732246594,-607.02,0.00013336,2]
[338554645,1726732246604,-773.5,0.00013336,2]
[338554646,1726732246614,-2144.96,0.00013336,2]
[338554647,1726732246623,-500.0,0.00013336,2]
[338554648,1726732246633,-707.1,0.00013336,2]
[338554649,1726732246643,-1791.75,0.00013336,2]
[338554650,1726732246652,-610.73,0.00013336,2]
[338554651,1726732246661,-1226.59,0.00013336,2]
[338554652,1726732246670,-500.0,0.00013336,2]
[338554653,1726732246680,-1499.27,0.00013336,2]
[338554654,1726732246689,-1218.65,0.00013336,2]
[338554655,1726732246699,-1490.06,0.00013336,2]
[338554656,1726732246708,-500.0,0.00013336,2]
[338554657,1726732246717,-981.47,0.00013336,2]
[338554658,1726732246726,-500.0,0.00013336,2]
[338554659,1726732246736,-689.16,0.00013336,2]
[338554660,1726732246745,-500.0,0.00013336,2]
[338554661,1726732246754,-500.0,0.00013336,2]
[338554662,1726732246764,-4015.97,0.00013336,2]
[338554663,1726732246774,-500.0,0.00013336,2]
[338554664,1726732246784,-500.0,0.00013336,2]
[338554665,1726732246793,-500.0,0.00013336,2]
[338554666,1726732246803,-500.0,0.00013336,2]
[338554667,1726732246812,-534.73,0.00013336,2]
[338554668,1726732246822,-1873.31,0.00013336,2]
[338554669,1726732246834,-1649.35,0.00013336,2]
[338554670,1726732246843,-2518.22,0.00013336,2]
[338554671,1726732246853,-951.55,0.00013336,2]
[338554672,1726732246863,-961.38,0.00013336,2]
[338554673,1726732246872,-838.34,0.00013336,2]
[338554674,1726732246881,-500.0,0.00013336,2]
[338554675,1726732246890,-2656.04,0.00013336,2]
[338554676,1726732246900,-1102.89,0.00013336,2]
[338554677,1726732246910,-538.09,0.00013336,2]
[338554678,1726732246922,-614.44,0.00013336,2]
[338554679,1726732246932,-500.0,0.00013336,2]
[338554680,1726732246942,-500.0,0.00013336,2]
[338554681,1726732246953,-1240.77,0.00013336,2]
[338554682,1726732246963,-500.0,0.00013336,2]
[338554683,1726732246973,-500.0,0.00013336,2]
[338554684,1726732246983,-886.35,0.00013336,2]
[338554685,1726732246993,-953.58,0.00013336,2]
[338554686,1726732247003,-661.25,0.00013336,2]
[338554687,1726732247012,-514.5,0.00013336,2]
[338554688,1726732247022,-631.07,0.00013336,2]
[338554689,1726732247032,-500.0,0.00013336,2]
[338554690,1726732247041,-716.29,0.00013336,2]
[338554691,1726732247051,-500.0,0.00013336,2]
[338554692,1726732247059,-500.0,0.00013336,2]
[338554693,1726732247069,-500.0,0.00013336,2]
[338554694,1726732247080,-500.0,0.00013336,2]
[338554695,1726732247090,-1113.9,0.00013336,2]
[338554696,1726732247099,-1295.39,0.00013336,2]
[338554697,1726732247109,-500.0,0.00013336,2]
[338554698,1726732247118,-500.0,0.00013336,2]
[338554699,1726732247128,-500.0,0.00013336,2]
[338554700,1726732247139,-686.32,0.00013336,2]
[338554701,1726732247149,-500.0,0.00013336,2]
[338554702,1726732247160,-1117.17,0.00013336,2]
[338554703,1726732247170,-500.0,0.00013336,2]
[338554704,1726732247179,-1504.63,0.00013336,2]
[338554705,1726732247188,-1973.3,0.00013336,2]
[338554706,1726732247198,-500.0,0.00013336,2]
[338554707,1726732247207,-500.0,0.00013336,2]
[338554708,1726732247218,-715.56,0.00013342,2]
[338554709,1726732247227,-357.94,0.00013342,2]
[338554710,1726732247237,-357.94,0.00013342,2]
[338554711,1726732247246,-357.94,0.00013342,2]
[338554712,1726732247255,-519.38,0.000134,2]
[338554713,1726732247264,-428.09,0.000134,2]
[338554714,1726732247274,-150.0,0.000134,2]
[338554715,1726732247285,-1505.5,0.000134,2]
[338554716,1726732247294,-150.0,0.000134,2]
[338554717,1726732247304,-150.0,0.000134,2]
[338554718,1726732247314,-422.7,0.000134,2]
[338554719,1726732247324,-428.09,0.000134,2]
[338554720,1726732247334,-150.0,0.000134,2]
[338554721,1726732247343,-150.0,0.000134,2]
[338554722,1726732247352,-428.09,0.000134,2]
[338554723,1726732247362,-150.0,0.000134,2]
[338554724,1726732247372,-150.0,0.000134,2]
[338554725,1726732247384,-422.7,0.000134,2]
[338554726,1726732247393,-422.7,0.000134,2]
[338554727,1726732247404,-150.0,0.000134,2]
[338554728,1726732247415,-150.0,0.000134,2]
[338554729,1726732247424,-427.69,0.000134,2]
[338554730,1726732247434,-150.0,0.000134,2]
[338554731,1726732247443,-150.0,0.000134,2]
[338554732,1726732247453,-357.94,0.000134,2]
[338554733,1726732247462,-150.0,0.000134,2]
[338554734,1726732247471,-357.94,0.000134,2]
[338554735,1726732247480,-357.94,0.000134,2]
[338554736,1726732247490,-357.94,0.000134,2]
[338554737,1726732247500,-156.98129516,0.000134,2]
[338554738,1726732247510,-357.94,0.000134,2]
[338554739,1726732247519,-3400.98670077,0.00013426,2]
[338554740,1726732247531,-518.66843562,0.00013437,2]
[338554741,1726732247540,-500.0,0.00013437,2]
[338554742,1726732247549,-500.0,0.00013437,2]
[338554743,1726732247559,-500.0,0.00013437,2]
[338554744,1726732247568,-500.0,0.00013437,2]
[338554745,1726732247578,-500.0,0.00013437,2]
[338554746,1726732247588,-500.0,0.00013437,2]
[338554747,1726732247598,-500.0,0.00013437,2]
[338554748,1726732247608,-511.73,0.00013437,2]
[338554749,1726732247616,-556.86,0.00013437,2]
[338554750,1726732247626,-500.0,0.00013437,2]
[338554751,1726732247636,-500.0,0.00013437,2]
[338554752,1726732247646,-500.0,0.00013437,2]
[338554753,1726732247656,-500.0,0.00013437,2]
[338554754,1726732247666,-733.16,0.00013437,2]
[338554755,1726732247677,-500.0,0.00013437,2]
[338554756,1726732247686,-500.0,0.00013437,2]
[338554757,1726732247696,-500.0,0.00013437,2]
[338554758,1726732247707,-500.0,0.00013437,2]
[338554759,1726732247717,-513.56,0.00013437,2]
[338554760,1726732247727,-500.0,0.00013437,2]
[338554761,1726732247736,-500.0,0.00013437,2]
[338554762,1726732247746,-500.0,0.00013437,2]
[338554763,1726732247755,-500.0,0.00013437,2]
[338554764,1726732247764,-500.0,0.00013437,2]
[338554765,1726732247774,-218.84145331,0.00013437,2]
[338554766,1726732247783,-500.0,0.00013437,2]
[338554767,1726732247793,-500.0,0.00013437,2]
[338554768,1726732247803,-500.0,0.00013437,2]
[338554769,1726732247812,-500.0,0.00013437,2]
[338554770,1726732247822,-500.0,0.00013437,2]
[338554771,1726732247834,-500.0,0.00013437,2]
[338554772,1726732247843,-500.0,0.00013437,2]
[338554773,1726732247852,-500.0,0.00013437,2]
[338554774,1726732247862,-591.17,0.00013437,2]
[338554775,1726732247872,-500.0,0.00013437,2]
[338554776,1726732247881,-459.75183535,0.00013437,2]
[338554777,1726732247890,-500.0,0.00013437,2]
[338554778,1726732247901,-500.0,0.00013437,2]
[338554779,1726732247910,-500.0,0.00013437,2]
[338554780,1726732247919,-500.0,0.00013437,2]
[338554781,1726732247929,-500.0,0.00013437,2]
[338554782,1726732247938,-696.61,0.00013437,2]
[338554783,1726732247947,-500.0,0.00013437,2]
[338554784,1726732247957,-500.0,0.00013437,2]
[338554785,1726732247966,-539.18,0.00013437,2]
[338554786,1726732247976,-500.0,0.00013437,2]
[338554787,1726732247985,-500.0,0.00013437,2]
[338554788,1726732247995,-500.0,0.00013437,2]
[338554789,1726732248005,-717.13,0.00013437,2]
[338554790,1726732248016,-701.24,0.00013437,2]
[338554791,1726732248025,-500.0,0.00013437,2]
[338554792,1726732248035,-500.0,0.00013437,2]
[338554793,1726732248045,-544.0,0.00013437,2]
[338554794,1726732248055,-941.85,0.00013437,2]
[338554795,1726732248065,-500.0,0.00013437,2]
[338554796,1726732248074,-500.0,0.00013437,2]
[338554797,1726732248085,-500.0,0.00013437,2]
[338554798,1726732248094,-500.0,0.00013437,2]
[338554799,1726732248104,-500.0,0.00013437,2]
[338554800,1726732248113,-500.0,0.00013437,2]
[338554801,1726732248122,-500.0,0.00013437,2]
[338554802,1726732248131,-500.0,0.00013437,2]
[338554803,1726732248141,-500.0,0.00013437,2]
[338554804,1726732248152,-500.0,0.00013437,2]
[338554805,1726732248161,-504.44,0.00013437,2]
[338554806,1726732248171,-500.0,0.00013437,2]
[338554807,1726732248180,-500.0,0.00013437,2]
[338554808,1726732248190,-500.0,0.00013437,2]
[338554809,1726732248199,-561.64,0.00013437,2]
[338554810,1726732248210,-500.0,0.00013437,2]
[338554811,1726732248220,-969.61,0.00013437,2]
[338554812,1726732248229,-858.02,0.00013437,2]
[338554813,1726732248239,-500.0,0.00013437,2]
[338554814,1726732248248,-896.77,0.00013437,2]
[338554815,1726732248257,-500.0,0.00013437,2]
[338554816,1726732248267,-674.18,0.00013437,2]
[338554817,1726732248276,-500.0,0.00013437,2]
[338554818,1726732248287,-500.0,0.00013437,2]
[338554819,1726732248296,-643.3,0.00013437,2]
[338554820,1726732248307,-500.0,0.00013437,2]
[338554821,1726732248317,-993.4,0.00013437,2]
[338554822,1726732248326,-500.0,0.00013437,2]
[338554823,1726732248336,-500.0,0.00013437,2]
[338554824,1726732248345,-1258.28,0.00013437,2]
[338554825,1726732248355,-677.15,0.00013437,2]
[338554826,1726732248364,-1044.68,0.00013437,2]
[338554827,1726732248373,-705.18,0.00013437,2]
[338554828,1726732248382,-500.0,0.00013437,2]
[338554829,1726732248392,-500.0,0.00013437,2]
[338554830,1726732248402,-812.59,0.00013437,2]
[338554831,1726732248411,-500.0,0.00013437,2]
[338554832,1726732248421,-593.93,0.00013437,2]
[338554833,1726732248431,-500.0,0.00013437,2]
[338554834,1726732248440,-500.0,0.00013437,2]
[338554835,1726732248450,-582.2,0.00013437,2]
[338554836,1726732248460,-819.35,0.00013437,2]
[338554837,1726732248469,-500.0,0.00013437,2]
[338554838,1726732248478,-500.0,0.00013437,2]
[338554839,1726732248488,-500.0,0.00013437,2]
[338554840,1726732248499,-565.94,0.00013437,2]
[338554841,1726732248508,-500.0,0.00013437,2]
[338554842,1726732248518,-500.0,0.00013437,2]
[338554843,1726732248527,-1613.08,0.00013437,2]
[338554844,1726732248538,-536.25,0.00013437,2]
[338554845,1726732248547,-725.28,0.00013437,2]
[338554846,1726732248557,-500.0,0.00013437,2]
[338554847,1726732248566,-500.0,0.00013437,2]
[338554848,1726732248576,-500.0,0.00013437,2]
[338554849,1726732248585,-500.0,0.00013437,2]
[338554850,1726732248594,-500.0,0.00013437,2]
[338554851,1726732248604,-855.03,0.00013437,2]
[338554852,1726732248613,-500.0,0.00013437,2]
[338554853,1726732248623,-500.0,0.00013437,2]
[338554854,1726732248632,-500.0,0.00013437,2]
[338554855,1726732248642,-500.0,0.00013437,2]
[338554856,1726732248651,-1132.22,0.00013437,2]
[338554857,1726732248661,-500.0,0.00013437,2]
[338554858,1726732248670,-500.0,0.00013437,2]
[338554859,1726732248679,-496.20006686,0.00013437,2]
[338554860,1726732248689,-816.95,0.00013437,2]
[338554861,1726732248699,-500.0,0.00013437,2]
[338554862,1726732248708,-500.0,0.00013437,2]
[338554863,1726732248717,-500.0,0.00013437,2]
[338554864,1726732248727,-500.0,0.00013437,2]
[338554865,1726732248736,-500.0,0.00013437,2]
[338554866,1726732248746,-807.02,0.00013437,2]